[Event "ESTCC 65 2019"]
[Site "Mali Losinj"]
[Date "2019.09.18"]
[Round "1.11"]
[White "Herbrechtsmeier, Christof"]
[Black "Jorgensen, Arne Bjorn"]
[Result "1/2-1/2"]
[ECO "C10"]
[WhiteElo "2210"]
[BlackElo "1996"]
[Annotator "NA"]
[PlyCount "61"]
[EventDate "2019.09.18"]
[EventType "team-tourn"]
[EventCountry "CRO"]
[SourceTitle "playchess.com"]
[Source "ChessBase"]
[SourceQuality "1"]
[WhiteTeam "Germany"]
[BlackTeam "Denmark"]
[WhiteTeamCountry "GER"]
[BlackTeamCountry "DEN"]
[TimeControl "40/5400+30:1800+30"]

1. e4 {[%emt 0:00:30]} e6 {[%emt 0:00:30]} 2. d4 {[%emt 0:00:00]} d5 {[%emt 0:00:00]} 3. Nc3 {[%emt 0:00:00]} dxe4 {[%emt 0:00:00]} 4. Nxe4 {[%emt 0:00:00]} Be7 {[%emt 0:00:00]} 5. Nf3 {[%emt 0:00:00]} Nd7 {[%emt 0:00:00]} 6. Bd3 {[%emt 0:00:30]} Ngf6 {[%emt 0:00:30]} 7. Qe2 {[%emt 0:00:30]} Nxe4 {[%emt 0:01:30]} 8. Qxe4 {[%emt 0:00:30]} Nf6 {[%emt 0:01:30]} 9. Qe2 {[%emt 0:00:30]} O-O {[%emt 0:01:30]} 10. Bg5 {[%emt 0:02:30]} c5 {[%emt 0:03:30]} 11. dxc5 {[%emt 0:00:30]} Qa5+ {[%emt 0:00:30]} 12. c3 {[%emt 0:00:30]} Qxc5 {[%emt 0:00:30]} 13. O-O-O {[%emt 0:00:30]} h6 {[%emt 0:02:30]} 14. h4 {[%emt 0:03:30]} Rb8 {[%emt 0:08:30]} 15. Bf4 {[%emt 0:03:30]} Ra8 {[%emt 0:00:30]} 16. Kb1 {[%emt 0:01:30]} b5 {[%emt 0:08:30]} 17. Ne5 {[%emt 0:07:30]} Bb7 {[%emt 0:03:30]} 18. Rhg1 {[%emt 0:08:30]} Rfd8 {[%emt 0:05:30]} 19. Bc2 {[%emt 0:09:30]} Rxd1+ {[%emt 0:04:30]} 20. Rxd1 {[%emt 0:04:30]} Rd8 {[%emt 0:06:30]} 21. Re1 {[%emt 0:06:30]} Bd5 {[%emt 0:29:30]} 22. g4 {[%emt 0:09:30]} Bc4 {[%emt 0:01:34]} 23. Qf3 {[%emt 0:07:30]} Qd5 {[%emt 0:01:22]} 24. Qxd5 {[%emt 0:00:30]} Bxd5 {[%emt 0:01:01]} 25. g5 {[%emt 0:03:30]} hxg5 {[%emt 0:01:23]} 26. hxg5 {[%emt 0:00:30]} Nd7 {[%emt 0:02:36]} 27. g6 {[%emt 0:03:30]} Nxe5 {[%emt 0:01:50]} 28. Bxe5 {[%emt 0:00:30]} fxg6 {[%emt 0:02:24]} 29. Bxg6 {[%emt 0:00:30]} Bf6 {[%emt 0:03:22]} 30. f4 {[%emt 0:06:30]} a6 {[%emt 0:01:20]} 31. b3 {[%emt 0:01:30]} 1/2-1/2

[Event "ESTCC 65 2019"]
[Site "Mali Losinj"]
[Date "2019.09.18"]
[Round "1.12"]
[White "Andersson, Finn"]
[Black "Kiefer, Gerhard"]
[Result "0-1"]
[ECO "B84"]
[WhiteElo "1771"]
[BlackElo "2227"]
[Annotator "NA"]
[PlyCount "74"]
[EventDate "2019.09.18"]
[EventType "team-tourn"]
[EventCountry "CRO"]
[SourceTitle "playchess.com"]
[Source "ChessBase"]
[SourceQuality "1"]
[WhiteTeam "Denmark"]
[BlackTeam "Germany"]
[WhiteTeamCountry "DEN"]
[BlackTeamCountry "GER"]
[TimeControl "40/5400+30:1800+30"]

1. e4 {[%emt 0:00:30]} c5 {[%emt 0:00:30]} 2. Nf3 {[%emt 0:00:00]} e6 {[%emt 0:00:00]} 3. d4 {[%emt 0:00:00]} cxd4 {[%emt 0:00:00]} 4. Nxd4 {[%emt 0:00:30]} Nf6 {[%emt 0:00:30]} 5. Nc3 {[%emt 0:03:30]} d6 {[%emt 0:00:00]} 6. Be2 {[%emt 0:02:30]} Be7 {[%emt 0:00:00]} 7. Be3 {[%emt 0:00:30]} O-O {[%emt 0:00:30]} 8. O-O {[%emt 0:00:30]} a6 {[%emt 0:00:00]} 9. Qe1 {[%emt 0:03:30]} Qc7 {[%emt 0:02:00]} 10. f4 {[%emt 0:02:30]} Nbd7 {[%emt 0:06:30]} 11. Kh1 {[%emt 0:05:30]} b5 {[%emt 0:00:30]} 12. a3 {[%emt 0:13:30]} Bb7 {[%emt 0:00:00]} 13. Bf3 {[%emt 0:01:30]} Nc5 {[%emt 0:25:00]} 14. Bf2 {[%emt 0:15:30]} Nfd7 {[%emt 0:01:30]} 15. Bh4 {[%emt 0:02:30]} Bxh4 {[%emt 0:02:30]} 16. Qxh4 {[%emt 0:00:00]} Nb6 {[%emt 0:00:30]} 17. f5 {[%emt 0:11:00]} e5 {[%emt 0:03:30]} 18. Nde2 {[%emt 0:07:30]} f6 {[%emt 0:07:30]} 19. b3 {[%emt 0:03:30]} Bc6 {[%emt 0:02:30]} 20. Rad1 {[%emt 0:05:48]} Rad8 {[%emt 0:04:30]} 21. Qf2 {[%emt 0:02:03]} Rfe8 {[%emt 0:08:30]} 22. Qe3 {[%emt 0:03:16]} a5 {[%emt 0:05:30]} 23. Rd2 {[%emt 0:03:55]} a4 {[%emt 0:01:30]} 24. Nd5 {[%emt 0:02:14]} Bxd5 {[%emt 0:00:30]} 25. exd5 {[%emt 0:00:08]} e4 {[%emt 0:01:30]} 26. Bh5 {[%emt 0:00:31]} Re5 {[%emt 0:00:00]} 27. Nc3 {[%emt 0:02:51]} axb3 {[%emt 0:01:00]} 28. cxb3 {[%emt 0:00:24]} Qb7 {[%emt 0:09:55]} 29. Be2 {[%emt 0:00:41]} Nxb3 {[%emt 0:01:43]} 30. Rb2 {[%emt 0:01:15]} Nc4 {[%emt 0:00:08]} 31. Bxc4 {[%emt 0:00:11]} bxc4 {[%emt 0:00:05]} 32. Qf2 {[%emt 0:03:23]} e3 {[%emt 0:02:20]} 33. Qe2 {[%emt 0:01:34]} Qa8 {[%emt 0:02:47]} 34. Nd1 {[%emt 0:01:44]} Nd4 {[%emt 0:01:51]} 35. Qxc4 {[%emt 0:01:00]} e2 {[%emt 0:00:10]} 36. Re1 {[%emt 0:00:40]} exd1=Q {[%emt 0:01:18]} 37. Rxd1 {[%emt 0:00:14]} Nxf5 {[%emt 0:00:17]} 0-1

[Event "ESTCC 65 2019"]
[Site "Mali Losinj"]
[Date "2019.09.18"]
[Round "1.25"]
[White "Quinn, John M"]
[Black "James, Kevin"]
[Result "1-0"]
[ECO "A40"]
[WhiteElo "2105"]
[BlackElo "1959"]
[Annotator "NA"]
[PlyCount "55"]
[EventDate "2019.09.18"]
[EventType "team-tourn"]
[EventCountry "CRO"]
[SourceTitle "playchess.com"]
[Source "ChessBase"]
[SourceQuality "1"]
[WhiteTeam "England"]
[BlackTeam "Ireland"]
[WhiteTeamCountry "ENG"]
[BlackTeamCountry "IRL"]
[TimeControl "40/5400+30:1800+30"]

1. d4 {[%emt 0:00:30]} g6 {[%emt 0:00:30]} 2. c4 {[%emt 0:00:00]} Bg7 {[%emt 0:00:00]} 3. Nf3 {[%emt 0:00:00]} c5 {[%emt 0:00:00]} 4. d5 {[%emt 0:00:30]} d6 {[%emt 0:00:30]} 5. Nc3 {[%emt 0:01:30]} Bxc3+ {[%emt 0:00:30]} 6. bxc3 {[%emt 0:00:00]} f5 {[%emt 0:00:30]} 7. g3 {[%emt 0:01:00]} Qa5 {[%emt 0:00:30]} 8. Nd2 {[%emt 0:05:30]} Qxc3 {[%emt 0:05:30]} 9. Rb1 {[%emt 0:00:00]} Qg7 {[%emt 0:00:30]} 10. Bg2 {[%emt 0:12:00]} Nf6 {[%emt 0:00:30]} 11. O-O {[%emt 0:00:30]} Nbd7 {[%emt 0:01:30]} 12. Bb2 {[%emt 0:06:30]} Ne5 {[%emt 0:03:30]} 13. Qb3 {[%emt 0:01:30]} O-O {[%emt 0:04:30]} 14. f4 {[%emt 0:13:30]} Nf7 {[%emt 0:03:30]} 15. e4 {[%emt 0:01:30]} fxe4 {[%emt 0:04:30]} 16. Nxe4 {[%emt 0:00:30]} b6 {[%emt 0:01:30]} 17. Rbe1 {[%emt 0:04:30]} Nh6 {[%emt 0:15:30]} 18. Ng5 {[%emt 0:09:30]} Nf5 {[%emt 0:00:30]} 19. Qd3 {[%emt 0:00:30]} h6 {[%emt 0:07:30]} 20. Ne6 {[%emt 0:01:30]} Bxe6 {[%emt 0:00:00]} 21. Rxe6 {[%emt 0:00:30]} Rac8 {[%emt 0:04:00]} 22. g4 {[%emt 0:06:30]} Nd4 {[%emt 0:02:30]} 23. Bxd4 {[%emt 0:00:30]} cxd4 {[%emt 0:00:00]} 24. g5 {[%emt 0:00:00]} Rc5 {[%emt 0:10:00]} 25. gxf6 {[%emt 0:01:00]} exf6 {[%emt 0:00:30]} 26. Qxd4 {[%emt 0:06:30]} Ra5 {[%emt 0:02:30]} 27. Rxd6 {[%emt 0:04:30]} Rxa2 {[%emt 0:01:30]} 28. Re1 {[%emt 0:03:30]} 1-0

[Event "ESTCC 65 2019"]
[Site "Mali Losinj"]
[Date "2019.09.18"]
[Round "1.26"]
[White "Lohan, Martin"]
[Black "Hutchinson, Paul A"]
[Result "1/2-1/2"]
[ECO "B10"]
[WhiteElo "1796"]
[BlackElo "2124"]
[Annotator "NA"]
[PlyCount "63"]
[EventDate "2019.09.18"]
[EventType "team-tourn"]
[EventCountry "CRO"]
[SourceTitle "playchess.com"]
[Source "ChessBase"]
[SourceQuality "1"]
[WhiteTeam "Ireland"]
[BlackTeam "England"]
[WhiteTeamCountry "IRL"]
[BlackTeamCountry "ENG"]
[TimeControl "40/5400+30:1800+30"]

1. Nf3 {[%emt 0:00:30]} Nf6 {[%emt 0:00:30]} 2. g3 {[%emt 0:00:30]} d5 {[%emt 0:00:00]} 3. Bg2 {[%emt 0:00:00]} c6 {[%emt 0:00:00]} 4. O-O {[%emt 0:00:00]} Nbd7 {[%emt 0:00:30]} 5. d3 {[%emt 0:01:30]} e5 {[%emt 0:03:30]} 6. Nbd2 {[%emt 0:01:30]} Bd6 {[%emt 0:01:30]} 7. e4 {[%emt 0:02:30]} O-O {[%emt 0:00:30]} 8. Re1 {[%emt 0:03:30]} Re8 {[%emt 0:03:30]} 9. b3 {[%emt 0:08:30]} d4 {[%emt 0:18:30]} 10. Bb2 {[%emt 0:04:30]} c5 {[%emt 0:07:30]} 11. Nc4 {[%emt 0:03:30]} Bc7 {[%emt 0:00:30]} 12. a4 {[%emt 0:02:30]} b6 {[%emt 0:00:30]} 13. Nh4 {[%emt 0:18:30]} Nf8 {[%emt 0:24:30]} 14. h3 {[%emt 0:08:30]} g6 {[%emt 0:05:30]} 15. f4 {[%emt 0:02:30]} exf4 {[%emt 0:08:30]} 16. e5 {[%emt 0:03:30]} Nd5 {[%emt 0:00:30]} 17. Nd6 {[%emt 0:15:30]} Be6 {[%emt 0:04:53]} 18. Nxe8 {[%emt 0:00:30]} Qxe8 {[%emt 0:00:07]} 19. gxf4 {[%emt 0:01:30]} Rd8 {[%emt 0:00:20]} 20. Bc1 {[%emt 0:02:05]} Qe7 {[%emt 0:02:42]} 21. Nf3 {[%emt 0:04:27]} Bf5 {[%emt 0:00:08]} 22. Ng5 {[%emt 0:02:07]} h6 {[%emt 0:04:20]} 23. Ne4 {[%emt 0:01:21]} Qh4 {[%emt 0:00:17]} 24. Nf2 {[%emt 0:02:14]} Nxf4 {[%emt 0:02:37]} 25. Qf3 {[%emt 0:00:42]} N8e6 {[%emt 0:00:16]} 26. Bxf4 {[%emt 0:01:37]} Qxf4 {[%emt 0:00:12]} 27. Qxf4 {[%emt 0:00:39]} Nxf4 {[%emt 0:00:10]} 28. Ng4 {[%emt 0:02:29]} Kg7 {[%emt 0:00:11]} 29. Rf1 {[%emt 0:01:43]} Nxg2 {[%emt 0:00:15]} 30. Kxg2 {[%emt 0:00:32]} h5 {[%emt 0:06:30]} 31. Nf2 {[%emt 0:00:49]} Bxe5 {[%emt 0:00:09]} 32. a5 {[%emt 0:00:07]} 1/2-1/2

[Event "ESTCC 65 2019"]
[Site "Mali Losinj"]
[Date "2019.09.18"]
[Round "1.27"]
[White "Hewson, Brian W R"]
[Black "Egan, Colm"]
[Result "1/2-1/2"]
[ECO "A46"]
[WhiteElo "2074"]
[BlackElo "1710"]
[Annotator "NA"]
[PlyCount "82"]
[EventDate "2019.09.18"]
[EventType "team-tourn"]
[EventCountry "CRO"]
[SourceTitle "playchess.com"]
[Source "ChessBase"]
[SourceQuality "1"]
[WhiteTeam "England"]
[BlackTeam "Ireland"]
[WhiteTeamCountry "ENG"]
[BlackTeamCountry "IRL"]
[TimeControl "40/5400+30:1800+30"]

1. Nf3 {[%emt 0:00:30]} d6 {[%emt 0:02:30]} 2. d4 {[%emt 0:00:30]} Nf6 {[%emt 0:00:30]} 3. g3 {[%emt 0:02:30]} Nbd7 {[%emt 0:00:30]} 4. Bg2 {[%emt 0:01:30]} e5 {[%emt 0:01:30]} 5. Nc3 {[%emt 0:01:30]} e4 {[%emt 0:03:30]} 6. Nd2 {[%emt 0:06:30]} d5 {[%emt 0:00:30]} 7. f3 {[%emt 0:00:30]} exf3 {[%emt 0:02:30]} 8. Bxf3 {[%emt 0:00:30]} c6 {[%emt 0:00:30]} 9. e4 {[%emt 0:00:30]} dxe4 {[%emt 0:00:30]} 10. Ndxe4 {[%emt 0:01:30]} Be7 {[%emt 0:05:30]} 11. Bf4 {[%emt 0:03:30]} Nxe4 {[%emt 0:03:30]} 12. Nxe4 {[%emt 0:04:30]} Nf6 {[%emt 0:00:30]} 13. Nxf6+ {[%emt 0:03:30]} Bxf6 {[%emt 0:00:30]} 14. Qe2+ {[%emt 0:00:30]} Be6 {[%emt 0:06:30]} 15. d5 {[%emt 0:14:30]} cxd5 {[%emt 0:02:30]} 16. Qb5+ {[%emt 0:02:30]} Bd7 {[%emt 0:09:30]} 17. Qxb7 {[%emt 0:06:30]} O-O {[%emt 0:05:30]} 18. O-O {[%emt 0:03:30]} Bd4+ {[%emt 0:09:30]} 19. Kh1 {[%emt 0:04:30]} Rc8 {[%emt 0:05:30]} 20. c3 {[%emt 0:06:30]} Bc6 {[%emt 0:01:30]} 21. Qb3 {[%emt 0:00:30]} Bb6 {[%emt 0:01:30]} 22. Rad1 {[%emt 0:03:30]} Qd7 {[%emt 0:06:30]} 23. Qc2 {[%emt 0:11:45]} d4 {[%emt 0:02:30]} 24. Qg2 {[%emt 0:00:33]} Bxf3 {[%emt 0:01:30]} 25. Rxf3 {[%emt 0:01:09]} Qe6 {[%emt 0:03:30]} 26. cxd4 {[%emt 0:02:00]} Qxa2 {[%emt 0:02:30]} 27. Ra3 {[%emt 0:02:38]} Qe6 {[%emt 0:01:30]} 28. Re3 {[%emt 0:03:00]} Qg6 {[%emt 0:00:30]} 29. Re2 {[%emt 0:00:47]} Rfd8 {[%emt 0:01:37]} 30. d5 {[%emt 0:00:25]} h5 {[%emt 0:02:48]} 31. h4 {[%emt 0:03:02]} Qg4 {[%emt 0:00:16]} 32. Kh2 {[%emt 0:01:13]} Ba5 {[%emt 0:02:53]} 33. Rd3 {[%emt 0:03:11]} Qf5 {[%emt 0:00:29]} 34. Qf3 {[%emt 0:01:45]} Rc4 {[%emt 0:01:39]} 35. d6 {[%emt 0:02:53]} Bb4 {[%emt 0:04:45]} 36. Rd5 {[%emt 0:01:06]} Qf6 {[%emt 0:00:49]} 37. Qd3 {[%emt 0:00:57]} Rxf4 {[%emt 0:00:17]} 38. gxf4 {[%emt 0:00:15]} Qxf4+ {[%emt 0:00:08]} 39. Qg3 {[%emt 0:00:57]} Qc4 {[%emt 0:00:34]} 40. Rg2 {[%emt 0:00:33]} g6 {[%emt 0:00:00]} 41. Rd1 {[%emt 0:09:21]} Qe4 {[%emt 0:02:15]} 1/2-1/2

[Event "ESTCC 65 2019"]
[Site "Mali Losinj"]
[Date "2019.09.18"]
[Round "1.28"]
[White "Cassidy, Sydney"]
[Black "Ewart, Brian R"]
[Result "0-1"]
[ECO "B58"]
[WhiteElo "1599"]
[BlackElo "1882"]
[Annotator "NA"]
[PlyCount "50"]
[EventDate "2019.09.18"]
[EventType "team-tourn"]
[EventCountry "CRO"]
[SourceTitle "playchess.com"]
[Source "ChessBase"]
[SourceQuality "1"]
[WhiteTeam "Ireland"]
[BlackTeam "England"]
[WhiteTeamCountry "IRL"]
[BlackTeamCountry "ENG"]
[TimeControl "40/5400+30:1800+30"]

1. e4 {[%emt 0:00:30]} c5 {[%emt 0:00:30]} 2. Nf3 {[%emt 0:00:00]} Nc6 {[%emt 0:00:30]} 3. d4 {[%emt 0:01:00]} cxd4 {[%emt 0:00:30]} 4. Nxd4 {[%emt 0:00:30]} Nf6 {[%emt 0:00:30]} 5. Nc3 {[%emt 0:00:00]} e5 {[%emt 0:01:30]} 6. Ndb5 {[%emt 0:04:00]} d6 {[%emt 0:00:00]} 7. Be2 {[%emt 0:01:30]} a6 {[%emt 0:01:00]} 8. Na3 {[%emt 0:00:30]} b5 {[%emt 0:00:30]} 9. Nd5 {[%emt 0:04:30]} Nxe4 {[%emt 0:00:30]} 10. Bf3 {[%emt 0:02:30]} f5 {[%emt 0:07:30]} 11. O-O {[%emt 0:01:30]} Bd7 {[%emt 0:08:30]} 12. Bxe4 {[%emt 0:09:30]} fxe4 {[%emt 0:00:00]} 13. Re1 {[%emt 0:01:30]} Be7 {[%emt 0:08:00]} 14. Nxe7 {[%emt 0:03:30]} Qxe7 {[%emt 0:00:30]} 15. Rxe4 {[%emt 0:00:30]} O-O {[%emt 0:09:30]} 16. c4 {[%emt 0:01:30]} Nd8 {[%emt 0:07:30]} 17. cxb5 {[%emt 0:01:30]} axb5 {[%emt 0:07:30]} 18. Nxb5 {[%emt 0:01:30]} Bxb5 {[%emt 0:00:30]} 19. Qd5+ {[%emt 0:01:30]} Qf7 {[%emt 0:01:30]} 20. Qd2 {[%emt 0:08:30]} Ne6 {[%emt 0:04:30]} 21. b3 {[%emt 0:03:30]} Nf4 {[%emt 0:03:30]} 22. Re3 {[%emt 0:01:30]} Qg6 {[%emt 0:05:30]} 23. f3 {[%emt 0:02:30]} Rac8 {[%emt 0:00:30]} 24. Re4 {[%emt 0:09:30]} Nh3+ {[%emt 0:06:30]} 25. Kh1 {[%emt 0:00:30]} Qxe4 {[%emt 0:00:30]} 0-1

[Event "ESTCC 65 2019"]
[Site "Mali Losinj"]
[Date "2019.09.18"]
[Round "1.29"]
[White "Vadlja, Stjepan"]
[Black "Rooze, Jan"]
[Result "0-1"]
[ECO "E33"]
[WhiteElo "1636"]
[BlackElo "2281"]
[Annotator "NA"]
[PlyCount "108"]
[EventDate "2019.09.18"]
[EventType "team-tourn"]
[EventCountry "CRO"]
[SourceTitle "playchess.com"]
[Source "ChessBase"]
[SourceQuality "1"]
[WhiteTeam "Croatia"]
[BlackTeam "Belgium"]
[WhiteTeamCountry "CRO"]
[BlackTeamCountry "BEL"]
[TimeControl "40/5400+30:1800+30"]

1. d4 {[%emt 0:00:30]} Nf6 {[%emt 0:00:30]} 2. c4 {[%emt 0:00:30]} e6 {[%emt 0:00:00]} 3. Nc3 {[%emt 0:00:00]} Bb4 {[%emt 0:00:00]} 4. Bd2 {[%emt 0:04:00]} O-O {[%emt 0:06:30]} 5. Qc2 {[%emt 0:01:30]} Nc6 {[%emt 0:07:30]} 6. Nf3 {[%emt 0:00:30]} d5 {[%emt 0:00:30]} 7. e3 {[%emt 0:03:30]} Re8 {[%emt 0:01:30]} 8. Be2 {[%emt 0:00:30]} Bf8 {[%emt 0:12:30]} 9. a3 {[%emt 0:03:30]} g6 {[%emt 0:08:30]} 10. O-O {[%emt 0:00:30]} Bg7 {[%emt 0:00:30]} 11. Rac1 {[%emt 0:00:30]} a6 {[%emt 0:04:30]} 12. b4 {[%emt 0:02:30]} Nb8 {[%emt 0:13:30]} 13. h3 {[%emt 0:03:30]} b6 {[%emt 0:03:30]} 14. Ne1 {[%emt 0:03:30]} dxc4 {[%emt 0:01:30]} 15. Bxc4 {[%emt 0:01:30]} Bb7 {[%emt 0:00:30]} 16. Be2 {[%emt 0:00:00]} Nbd7 {[%emt 0:02:30]} 17. Bf3 {[%emt 0:00:00]} Qb8 {[%emt 0:00:30]} 18. Nb1 {[%emt 0:04:30]} Rc8 {[%emt 0:02:30]} 19. Bc6 {[%emt 0:00:30]} e5 {[%emt 0:04:30]} 20. d5 {[%emt 0:03:30]} Rd8 {[%emt 0:00:30]} 21. e4 {[%emt 0:01:30]} Bxc6 {[%emt 0:00:30]} 22. dxc6 {[%emt 0:00:30]} Nf8 {[%emt 0:00:00]} 23. Bg5 {[%emt 0:00:30]} Ne6 {[%emt 0:00:00]} 24. Nf3 {[%emt 0:01:30]} Nxg5 {[%emt 0:03:30]} 25. Nxg5 {[%emt 0:00:00]} Bh6 {[%emt 0:00:30]} 26. h4 {[%emt 0:00:00]} Rd4 {[%emt 0:02:30]} 27. f3 {[%emt 0:00:30]} Qd8 {[%emt 0:01:30]} 28. Rcd1 {[%emt 0:00:30]} Bxg5 {[%emt 0:01:30]} 29. hxg5 {[%emt 0:00:00]} Nh5 {[%emt 0:00:30]} 30. Rxd4 {[%emt 0:00:00]} Qxd4+ {[%emt 0:00:30]} 31. Qf2 {[%emt 0:01:30]} Qc4 {[%emt 0:02:30]} 32. Rd1 {[%emt 0:00:30]} Qxc6 {[%emt 0:00:30]} 33. Qd2 {[%emt 0:00:30]} Nf4 {[%emt 0:00:30]} 34. Nc3 {[%emt 0:00:30]} Qxc3 {[%emt 0:00:30]} 35. Qxc3 {[%emt 0:00:30]} Ne2+ {[%emt 0:00:00]} 36. Kf2 {[%emt 0:00:30]} Nxc3 {[%emt 0:00:00]} 37. Rd7 {[%emt 0:00:30]} Rc8 {[%emt 0:01:30]} 38. Re7 {[%emt 0:00:30]} c5 {[%emt 0:07:24]} 39. Rxe5 {[%emt 0:00:00]} cxb4 {[%emt 0:04:20]} 40. axb4 {[%emt 0:00:00]} b5 {[%emt 0:00:26]} 41. Re7 {[%emt 0:30:30]} Na2 {[%emt 0:30:16]} 42. Ra7 {[%emt 0:00:30]} Nxb4 {[%emt 0:00:04]} 43. Kg3 {[%emt 0:00:30]} Rc2 {[%emt 0:04:35]} 44. Kh3 {[%emt 0:00:30]} Ra2 {[%emt 0:00:18]} 45. Kg3 {[%emt 0:03:30]} Nd3 {[%emt 0:00:58]} 46. Rd7 {[%emt 0:00:00]} Rd2 {[%emt 0:03:00]} 47. Rd8+ {[%emt 0:01:00]} Kg7 {[%emt 0:00:07]} 48. Ra8 {[%emt 0:00:30]} b4 {[%emt 0:00:44]} 49. Rxa6 {[%emt 0:00:30]} b3 {[%emt 0:00:03]} 50. Rb6 {[%emt 0:00:00]} b2 {[%emt 0:00:04]} 51. f4 {[%emt 0:02:00]} Rd1 {[%emt 0:01:34]} 52. f5 {[%emt 0:00:00]} gxf5 {[%emt 0:00:28]} 53. exf5 {[%emt 0:00:00]} b1=Q {[%emt 0:00:06]} 54. f6+ {[%emt 0:00:30]} Kg6 {[%emt 0:00:30]} 0-1

[Event "ESTCC 65 2019"]
[Site "Mali Losinj"]
[Date "2019.09.18"]
[Round "1.31"]
[White "Novak, Stjepan"]
[Black "Van de Wynkele, Herman"]
[Result "0-1"]
[ECO "B06"]
[WhiteElo "1503"]
[BlackElo "2085"]
[Annotator "NA"]
[PlyCount "70"]
[EventDate "2019.09.18"]
[EventType "team-tourn"]
[EventCountry "CRO"]
[SourceTitle "playchess.com"]
[Source "ChessBase"]
[SourceQuality "1"]
[WhiteTeam "Croatia"]
[BlackTeam "Belgium"]
[WhiteTeamCountry "CRO"]
[BlackTeamCountry "BEL"]
[TimeControl "40/5400+30:1800+30"]

1. e4 {[%emt 0:00:30]} g6 {[%emt 0:00:30]} 2. Nf3 {[%emt 0:00:30]} Bg7 {[%emt 0:00:00]} 3. d4 {[%emt 0:00:30]} d6 {[%emt 0:00:00]} 4. c3 {[%emt 0:00:00]} Nd7 {[%emt 0:00:30]} 5. Bd3 {[%emt 0:01:00]} e5 {[%emt 0:01:30]} 6. Be3 {[%emt 0:01:30]} Ngf6 {[%emt 0:00:00]} 7. h3 {[%emt 0:01:30]} Qe7 {[%emt 0:02:00]} 8. Qb3 {[%emt 0:00:30]} O-O {[%emt 0:04:30]} 9. Nbd2 {[%emt 0:03:30]} a6 {[%emt 0:17:30]} 10. O-O {[%emt 0:02:30]} Nh5 {[%emt 0:03:30]} 11. g3 {[%emt 0:03:30]} Kh8 {[%emt 0:00:30]} 12. Kg2 {[%emt 0:00:30]} f5 {[%emt 0:01:30]} 13. exf5 {[%emt 0:03:30]} gxf5 {[%emt 0:00:30]} 14. Bg5 {[%emt 0:03:30]} Qe8 {[%emt 0:01:30]} 15. Nh2 {[%emt 0:09:30]} h6 {[%emt 0:01:30]} 16. Bh4 {[%emt 0:00:30]} Qg6 {[%emt 0:02:30]} 17. Kh1 {[%emt 0:05:30]} exd4 {[%emt 0:01:30]} 18. c4 {[%emt 0:01:30]} Nc5 {[%emt 0:01:30]} 19. Qc2 {[%emt 0:00:30]} Bd7 {[%emt 0:01:30]} 20. Nhf3 {[%emt 0:01:30]} Bc6 {[%emt 0:00:30]} 21. Kh2 {[%emt 0:11:30]} Be4 {[%emt 0:02:30]} 22. Ne1 {[%emt 0:00:30]} Bxd3 {[%emt 0:11:30]} 23. Nxd3 {[%emt 0:00:30]} f4 {[%emt 0:00:30]} 24. Nb4 {[%emt 0:01:30]} d3 {[%emt 0:00:30]} 25. Qd1 {[%emt 0:00:30]} fxg3+ {[%emt 0:03:30]} 26. Bxg3 {[%emt 0:01:30]} Nxg3 {[%emt 0:00:30]} 27. fxg3 {[%emt 0:00:30]} Rxf1 {[%emt 0:00:30]} 28. Nxf1 {[%emt 0:01:30]} Re8 {[%emt 0:00:30]} 29. Qg4 {[%emt 0:06:30]} Re2+ {[%emt 0:00:30]} 30. Kh1 {[%emt 0:00:00]} Qxg4 {[%emt 0:00:30]} 31. hxg4 {[%emt 0:00:00]} d2 {[%emt 0:00:00]} 32. Nc2 {[%emt 0:00:30]} d1=Q {[%emt 0:00:00]} 33. Rxd1 {[%emt 0:00:00]} Rxc2 {[%emt 0:00:30]} 34. b4 {[%emt 0:01:00]} Ne4 {[%emt 0:00:30]} 35. Re1 {[%emt 0:01:30]} Rxc4 {[%emt 0:00:00]} 0-1

[Event "ESTCC 65 2019"]
[Site "Mali Losinj"]
[Date "2019.09.18"]
[Round "1.32"]
[White "Schrickx, Frank"]
[Black "Petanjek, Zvonko"]
[Result "1-0"]
[ECO "C60"]
[WhiteElo "1813"]
[BlackElo "1650"]
[Annotator "NA"]
[PlyCount "69"]
[EventDate "2019.09.18"]
[EventType "team-tourn"]
[EventCountry "CRO"]
[SourceTitle "playchess.com"]
[Source "ChessBase"]
[SourceQuality "1"]
[WhiteTeam "Belgium"]
[BlackTeam "Croatia"]
[WhiteTeamCountry "BEL"]
[BlackTeamCountry "CRO"]
[TimeControl "40/5400+30:1800+30"]

1. e4 {[%emt 0:00:30]} e5 {[%emt 0:00:30]} 2. Nf3 {[%emt 0:00:00]} Nc6 {[%emt 0:00:00]} 3. Bb5 {[%emt 0:00:00]} Nge7 {[%emt 0:00:00]} 4. c3 {[%emt 0:00:30]} a6 {[%emt 0:00:30]} 5. Bxc6 {[%emt 0:00:30]} Nxc6 {[%emt 0:00:00]} 6. d4 {[%emt 0:00:30]} Bd6 {[%emt 0:02:00]} 7. O-O {[%emt 0:03:30]} h6 {[%emt 0:00:30]} 8. Nxe5 {[%emt 0:06:30]} Nxe5 {[%emt 0:00:30]} 9. dxe5 {[%emt 0:00:00]} Bxe5 {[%emt 0:00:30]} 10. f4 {[%emt 0:00:00]} Bd6 {[%emt 0:00:30]} 11. Be3 {[%emt 0:01:30]} O-O {[%emt 0:00:30]} 12. Nd2 {[%emt 0:01:30]} b6 {[%emt 0:00:30]} 13. Nc4 {[%emt 0:04:30]} Be7 {[%emt 0:01:30]} 14. Qh5 {[%emt 0:07:30]} Qe8 {[%emt 0:00:30]} 15. Rad1 {[%emt 0:05:30]} Bb7 {[%emt 0:01:30]} 16. e5 {[%emt 0:04:30]} Bc6 {[%emt 0:00:30]} 17. f5 {[%emt 0:04:30]} f6 {[%emt 0:00:30]} 18. Qh3 {[%emt 0:04:30]} Bb5 {[%emt 0:00:30]} 19. Rf4 {[%emt 0:04:30]} fxe5 {[%emt 0:01:30]} 20. Nxe5 {[%emt 0:07:30]} Bg5 {[%emt 0:05:30]} 21. Re4 {[%emt 0:09:30]} Bxe3+ {[%emt 0:11:30]} 22. Rxe3 {[%emt 0:00:30]} Qd8 {[%emt 0:00:30]} 23. c4 {[%emt 0:02:30]} Qf6 {[%emt 0:04:30]} 24. cxb5 {[%emt 0:00:30]} Rfd8 {[%emt 0:00:30]} 25. Qf3 {[%emt 0:01:30]} d6 {[%emt 0:00:30]} 26. Qd5+ {[%emt 0:01:30]} Kh7 {[%emt 0:00:30]} 27. Ng4 {[%emt 0:02:30]} Qg5 {[%emt 0:00:30]} 28. Qf3 {[%emt 0:01:30]} axb5 {[%emt 0:01:30]} 29. Re6 {[%emt 0:03:30]} Ra4 {[%emt 0:00:30]} 30. Rg6 {[%emt 0:02:30]} Qe7 {[%emt 0:01:30]} 31. Rf1 {[%emt 0:08:50]} Qf7 {[%emt 0:02:30]} 32. Qh3 {[%emt 0:03:07]} Rxg4 {[%emt 0:03:30]} 33. Qxg4 {[%emt 0:00:16]} Rf8 {[%emt 0:00:30]} 34. Re6 {[%emt 0:01:10]} Kh8 {[%emt 0:02:30]} 35. Qg6 {[%emt 0:01:43]} 1-0